fUSD/lending_fUSD_20241206
["ID","MTS","AMOUNT","RATE_DAILY","PERIOD"]
[344427424,1733454653667,-567.0,0.00016,2]
[344427425,1733454653676,-1262.0,0.00016,2]
[344427426,1733454653685,-3362.83646779,0.00016,2]
[344427427,1733454653695,-200.0,0.00016,2]
[344427428,1733454653704,-2004.0,0.00016,2]
[344427429,1733454653717,-150.0,0.00016,2]
[344427430,1733454653727,-631.0,0.00016,2]
[344427431,1733454653736,-1893.0,0.00016,2]
[344427432,1733454653746,-563.0,0.00016,2]
[344427433,1733454653756,-1252.0,0.00016,2]
[344427434,1733454653766,-3761.0,0.00016,2]
[344427435,1733454653776,-816.0,0.00016,2]
[344427436,1733454653786,-3529.0,0.00016,2]
[344427437,1733454653795,-535.0,0.00016,2]
[344427438,1733454653804,-973.0,0.00016,2]
[344427439,1733454653814,-13715.0,0.00016,2]
[344427440,1733454653823,-5964.0,0.00016,2]
[344427441,1733454653833,-150.0,0.00016,2]
[344427442,1733454653842,-1166.0,0.00016,2]
[344427443,1733454653852,-201.0,0.0001601,2]
[344427444,1733454653862,-1373.56,0.00016027,2]
[344427445,1733454653873,-9999.99,0.00016116,2]
[344427446,1733454653882,-1373.56,0.00016164,2]
[344427447,1733454653892,-150.0,0.00016222,2]
[344427448,1733454653902,-1373.56,0.00016301,2]
[344427449,1733454653914,-200.0,0.0001634,2]
[344427450,1733454653923,-1373.56,0.00016438,2]
[344427451,1733454653933,-500.0,0.00016438,2]
[344427452,1733454653943,-500.0,0.00016438,2]
[344427453,1733454653953,-500.0,0.00016438,2]
[344427454,1733454653964,-500.0,0.00016438,2]
[344427455,1733454653973,-500.0,0.00016438,2]
[344427456,1733454653983,-500.0,0.00016438,2]
[344427457,1733454653992,-595.8454002,0.00016438,2]
[344427458,1733454654001,-584.9,0.00016438,2]
[344427459,1733454654011,-584.9,0.00016438,2]
[344427460,1733454654021,-300.0,0.00016438,2]
[344427461,1733454654031,-150.0,0.00016438,2]
[344427462,1733454654040,-500.0,0.00016491,14]
[344427463,1733454654050,-500.0,0.000165,14]
[344427464,1733454654060,-500.0,0.000165,14]
[344427465,1733454654070,-500.0,0.000165,14]
[344427466,1733454654079,-500.0,0.000165,14]
[344427467,1733454654089,-500.0,0.000165,14]
[344427468,1733454654099,-410.27790607,0.000165,14]
[344427469,1733454654108,-305.0,0.00016503,2]
[344427470,1733454654117,-150.65,0.00016521,2]
[344427471,1733454654127,-2000.0,0.00016546,2]
[344427472,1733454654136,-524.6483374,0.00016546,2]
[344427473,1733454654145,-602.56913458,0.00016546,2]
[344427474,1733454654154,-1567.0898078,0.00016546,2]
[344427475,1733454654164,-676.90650814,0.00016546,2]
[344427476,1733454654174,-5000.0,0.00016546,10]
[344427477,1733454654183,-1055.0,0.00016549,2]
[344427478,1733454654193,-1373.56,0.00016575,2]
[344427479,1733454654202,-150.0,0.00016583,2]
[344427480,1733454654214,-5555.58,0.000166,14]
[344427481,1733454654223,-81.69,0.00016658,30]
[344427482,1733454654233,-935.4,0.00016658,30]
[344427483,1733454654242,-603.64818877,0.00016658,2]
[344427484,1733454654251,-150.0,0.00016658,2]
[344427485,1733454654261,-150.0,0.00016658,2]
[344427486,1733454654270,-386.259157,0.00016658,2]
[344427487,1733454654280,-150.0,0.00016658,2]
[344427488,1733454654289,-281.70304008,0.00016658,2]
[344427489,1733454654299,-150.0,0.00016658,2]
[344427490,1733454654308,-150.0,0.00016658,2]
[344427491,1733454654319,-150.0,0.00016658,2]
[344427492,1733454654329,-150.0,0.00016658,2]
[344427493,1733454654339,-156.28890996,0.00016658,2]
[344427494,1733454654349,-150.0,0.00016658,2]
[344427495,1733454654359,-169.24992941,0.00016658,2]
[344427496,1733454654377,-150.0,0.00016658,2]
[344427497,1733454654388,-150.0,0.00016658,2]
[344427498,1733454654398,-1373.56,0.00016712,2]
[344427499,1733454654408,-175.34,0.00016712,2]
[344427500,1733454654419,-151.23,0.00016731,2]
[344427501,1733454654429,-603.64818877,0.00016758,2]
[344427502,1733454654440,-386.259157,0.00016758,2]
[344427503,1733454654450,-150.0,0.00016803,2]
[344427504,1733454654461,-1373.72338355,0.00016849,2]
[344427505,1733454654471,-150.0,0.00016855,2]
[344427506,1733454654481,-603.64818877,0.00016857,2]
[344427507,1733454654492,-386.259157,0.00016857,2]
[344427508,1733454654501,-4236.44,0.00016871,2]
[344427509,1733454654511,-201.0,0.0001689,2]
[344427510,1733454654520,-150.0,0.00016943,2]
[344427511,1733454654530,-150.0,0.00016948,2]
[344427512,1733454654540,-603.64818877,0.00016957,2]
[344427513,1733454654550,-386.259157,0.00016957,2]
[344427514,1733454654561,-500.0,0.00017,2]
[344427515,1733454654571,-500.0,0.00017,2]
[344427516,1733454654580,-152.0,0.00017014,6]
[344427517,1733454654589,-150.0,0.00017023,2]
[344427518,1733454654599,-150.0,0.00017052,2]
[344427519,1733454654609,-603.64818877,0.00017056,2]
[344427520,1733454654619,-386.259157,0.00017056,2]
[344427521,1733454654630,-150.0,0.00017093,2]
[344427522,1733454654644,-250.0,0.00017123,2]
[344427523,1733454654654,-603.64818877,0.00017156,2]
[344427524,1733454654664,-386.259157,0.00017156,2]
[344427525,1733454654677,-150.0,0.00017238,2]
[344427526,1733454654686,-150.0,0.00017249,2]
[344427527,1733454654696,-603.64818877,0.00017255,2]
[344427528,1733454654706,-386.259157,0.00017255,2]
[344427529,1733454654717,-150.0,0.00017304,2]
[344427530,1733454654727,-603.64818877,0.00017355,2]
[344427531,1733454654736,-386.259157,0.00017355,2]
[344427532,1733454654746,-150.0,0.00017362,2]
[344427533,1733454654755,-1055.0,0.00017377,2]
[344427534,1733454654765,-150.0,0.00017383,2]
[344427535,1733454654775,-150.0,0.00017388,2]
[344427536,1733454654784,-592.54,0.00017416,2]
[344427537,1733454654793,-150.0,0.00017446,2]
[344427538,1733454654803,-603.64818877,0.00017454,2]
[344427539,1733454654813,-386.259157,0.00017454,2]
[344427540,1733454654823,-150.0,0.00017528,2]
[344427541,1733454654832,-603.64818877,0.00017554,2]
[344427542,1733454654842,-386.259157,0.00017554,2]
[344427543,1733454654851,-500.0,0.00017562,2]
[344427544,1733454654861,-452.0,0.00017572,2]
[344427545,1733454654871,-3829.0,0.00017572,2]
[344427546,1733454654882,-4738.0,0.00017572,2]
[344427547,1733454654893,-151.02890364,0.00017632,2]
[344427548,1733454654902,-150.0,0.00017644,2]
[344427549,1733454654913,-603.64818877,0.00017653,2]
[344427550,1733454654922,-386.259157,0.00017653,2]
[344427551,1733454654932,-150.0,0.00017664,2]
[344427552,1733454654941,-150.0,0.00017672,2]
[344427553,1733454654955,-455.82,0.00017728,2]
[344427554,1733454654967,-603.64818877,0.00017753,2]
[344427555,1733454654976,-386.259157,0.00017753,2]
[344427556,1733454654986,-150.0,0.00017753,2]
[344427557,1733454654995,-201.0,0.0001776,2]
[344427558,1733454655005,-350.0,0.00017808,2]
[344427559,1733454655014,-150.0,0.00017817,2]
[344427560,1733454655023,-150.0,0.00017841,2]
[344427561,1733454655033,-603.64818877,0.00017853,2]
[344427562,1733454655042,-386.259157,0.00017853,2]
[344427563,1733454655051,-150.0,0.0001789,2]
[344427564,1733454655061,-998.0,0.000179,6]
[344427565,1733454655070,-367.87,0.000179,2]
[344427566,1733454655079,-367.87,0.000179,2]
[344427567,1733454655088,-367.87,0.000179,2]
[344427568,1733454655098,-367.87,0.000179,2]
[344427569,1733454655108,-367.87,0.000179,2]
[344427570,1733454655117,-367.87,0.000179,2]
[344427571,1733454655127,-367.87,0.000179,2]
[344427572,1733454655136,-367.87,0.000179,2]
[344427573,1733454655145,-367.87,0.000179,2]
[344427574,1733454655154,-367.87,0.000179,2]
[344427575,1733454655164,-367.87,0.000179,2]
[344427576,1733454655174,-603.64818877,0.00017952,2]
[344427577,1733454655183,-386.259157,0.00017952,2]
[344427578,1733454655193,-150.0,0.00017962,2]
[344427579,1733454655203,-328.94863168,0.00018,2]
[344427580,1733454655213,-3194.73508105,0.00018,2]
[344427581,1733454655223,-1130.60333487,0.00018,2]
[344427582,1733454655233,-2444.0,0.00018,2]
[344427583,1733454655242,-5610.02231632,0.00018,2]
[344427584,1733454655252,-1029.09691396,0.00018,2]
[344427585,1733454655261,-167725.53058962,0.00018,30]
[344427586,1733454655273,-2000.0,0.00018,4]
[344427587,1733454655282,-163835.49323159,0.00018,30]
[344427588,1733454655293,-453318.8954771,0.00018,30]
[344427589,1733454655302,-1548.6520339,0.00018,30]
[344427590,1733454655312,-500.0,0.00018,2]
[344427591,1733454655322,-9468.00000001,0.00018,30]
[344427592,1733454655331,-1208.8797,0.00018,2]
[344427593,1733454655340,-6524.49703709,0.00018,2]
[344427594,1733454655350,-2921.2624,0.00018,2]
[344427595,1733454655360,-150.0,0.00018025,2]
[344427596,1733454655369,-150.0,0.00018038,2]
[344427597,1733454655379,-152.0,0.00018043,7]
[344427598,1733454655389,-304.08,0.00018045,2]
[344427599,1733454655398,-150.0,0.00018045,2]
[344427600,1733454655407,-150.0,0.00018045,2]
[344427601,1733454655417,-603.64818877,0.00018052,2]
[344427602,1733454655426,-386.259157,0.00018052,2]
[344427603,1733454655436,-176.910292,0.00018065,2]
[344427604,1733454655445,-150.0,0.00018066,2]
[344427605,1733454655454,-310.06148806,0.00018082,2]
[344427606,1733454655466,-1691.18091146,0.000181,2]
[344427607,1733454655475,-150.0,0.00018107,2]
[344427608,1733454655485,-150.0,0.00018118,2]
[344427609,1733454655494,-367.58,0.00018118,2]
[344427610,1733454655504,-364.12,0.00018118,2]
[344427611,1733454655513,-364.12,0.00018118,2]
[344427612,1733454655523,-364.12,0.00018118,2]
[344427613,1733454655532,-364.12,0.00018118,2]
[344427614,1733454655542,-364.12,0.00018118,2]
[344427615,1733454655551,-603.64818877,0.00018151,2]
[344427616,1733454655561,-386.259157,0.00018151,2]
[344427617,1733454655570,-150.0,0.00018235,2]
[344427618,1733454655579,-1055.0,0.00018245,2]
[344427619,1733454655588,-603.64818877,0.00018251,2]
[344427620,1733454655597,-386.259157,0.00018251,2]
[344427621,1733454655607,-150.0,0.00018252,2]
[344427622,1733454655616,-500.0,0.00018293,2]
[344427623,1733454655626,-1700.0,0.00018293,2]
[344427624,1733454655641,-2548.47595051,0.00018347,12]
[344427625,1733454655650,-603.64818877,0.0001835,2]
[344427626,1733454655660,-386.259157,0.0001835,2]
[344427627,1733454655670,-81981.04,0.00018356,2]
[344427628,1733454655680,-150.0,0.00018385,2]
[344427629,1733454655689,-150.0,0.00018397,2]
[344427630,1733454655698,-150.0,0.00018432,2]
[344427631,1733454655708,-603.64818877,0.0001845,2]
[344427632,1733454655722,-386.259157,0.0001845,2]
[344427633,1733454655732,-292.45,0.00018456,2]
[344427634,1733454655743,-584.9,0.00018456,2]
[344427635,1733454655753,-469.87,0.00018456,2]
[344427636,1733454655763,-150.0,0.00018483,2]
[344427637,1733454655775,-206.60507561,0.00018493,2]
[344427638,1733454655785,-584.8,0.00018505,2]
[344427639,1733454655796,-5700.83163777,0.00018517,2]
[344427640,1733454655806,-150.0,0.00018542,2]
[344427641,1733454655817,-603.64818877,0.00018549,2]
[344427642,1733454655829,-386.259157,0.00018549,2]
[344427643,1733454655839,-150.0,0.00018629,2]
[344427644,1733454655850,-201.0,0.0001864,2]
[344427645,1733454655860,-603.64818877,0.00018649,2]
[344427646,1733454655875,-386.259157,0.00018649,2]
[344427647,1733454655885,-150.0,0.00018687,2]
[344427648,1733454655895,-150.0,0.00018746,2]
[344427649,1733454655906,-603.64818877,0.00018748,2]
[344427650,1733454655917,-386.259157,0.00018748,2]
[344427651,1733454655928,-150.0,0.0001877,2]
[344427652,1733454655939,-364.12,0.00018824,2]
[344427653,1733454655951,-364.12,0.00018824,2]
[344427654,1733454655963,-363.77,0.00018824,2]
[344427655,1733454655974,-150.0,0.00018826,2]
[344427656,1733454655987,-150.0,0.00018832,2]
[344427657,1733454655998,-603.64818877,0.00018848,2]
[344427658,1733454656008,-386.259157,0.00018848,2]
[344427659,1733454656019,-150.0,0.00018848,2]
[344427660,1733454656030,-25467.38412411,0.000189,2]
[344427661,1733454656042,-364.12,0.0001894,2]
[344427662,1733454656055,-364.12,0.0001894,2]
[344427663,1733454656066,-364.12,0.0001894,2]
[344427664,1733454656076,-364.12,0.0001894,2]
[344427665,1733454656087,-364.12,0.0001894,2]
[344427666,1733454656098,-364.12,0.0001894,2]
[344427667,1733454656109,-364.12,0.0001894,2]
[344427668,1733454656119,-364.12,0.0001894,2]
[344427669,1733454656130,-364.12,0.0001894,2]
[344427670,1733454656140,-364.12,0.0001894,2]
[344427671,1733454656150,-364.12,0.0001894,2]
[344427672,1733454656161,-364.12,0.0001894,2]
[344427673,1733454656171,-364.12,0.0001894,2]
[344427674,1733454656181,-364.12,0.0001894,2]
[344427675,1733454656191,-364.12,0.0001894,2]
[344427676,1733454656201,-364.12,0.0001894,2]
[344427677,1733454656214,-603.64818877,0.00018948,2]
[344427678,1733454656224,-386.259157,0.00018948,2]
[344427679,1733454656235,-176.910292,0.00018968,2]
[344427680,1733454656246,-150.0,0.00018977,2]
[344427681,1733454656256,-567.0,0.00019,2]
[344427682,1733454656266,-1262.0,0.00019,2]
[344427683,1733454656277,-774.6115,0.00019,30]
[344427684,1733454656287,-2004.0,0.00019,2]
[344427685,1733454656297,-150.0,0.00019,2]
[344427686,1733454656307,-631.0,0.00019,2]
[344427687,1733454656317,-1893.0,0.00019,2]
[344427688,1733454656328,-563.0,0.00019,2]
[344427689,1733454656339,-1252.0,0.00019,2]
[344427690,1733454656349,-3761.0,0.00019,2]
[344427691,1733454656359,-816.0,0.00019,2]
[344427692,1733454656369,-3529.0,0.00019,2]
[344427693,1733454656380,-535.0,0.00019,2]
[344427694,1733454656390,-973.0,0.00019,2]
[344427695,1733454656400,-550.0,0.00019,2]
[344427696,1733454656411,-550.0,0.00019,2]
[344427697,1733454656422,-13715.0,0.00019,2]
[344427698,1733454656432,-5964.0,0.00019,2]
[344427699,1733454656442,-150.0,0.00019,2]
[344427700,1733454656452,-1166.0,0.00019,2]
[344427701,1733454656463,-150.0,0.00019023,2]
[344427702,1733454656473,-4236.44,0.00019034,2]
[344427703,1733454656484,-603.64818877,0.00019047,2]
[344427704,1733454656494,-386.259157,0.00019047,2]
[344427705,1733454656504,-152.0,0.00019071,8]
[344427706,1733454656513,-150.0,0.00019106,2]
[344427707,1733454656524,-2541.74113997,0.0001911,2]
[344427708,1733454656534,-150.0,0.00019122,2]
[344427709,1733454656544,-150.0,0.00019122,2]
[344427710,1733454656554,-150.0,0.00019122,2]
[344427711,1733454656564,-150.0,0.00019122,2]
[344427712,1733454656574,-603.64818877,0.00019147,2]
[344427713,1733454656583,-386.259157,0.00019147,2]
[344427714,1733454656593,-150.120611,0.00019148,4]
[344427715,1733454656603,-1055.0,0.00019158,2]
[344427716,1733454656613,-626.02,0.00019178,2]
[344427717,1733454656623,-3211.26,0.00019178,2]
[344427718,1733454656634,-287926.05406552,0.000192,2]
[344427719,1733454656644,-150.0,0.00019213,4]
[344427720,1733454656654,-150.0,0.0001922,4]
[344427721,1733454656664,-935.4,0.00019242,30]
[344427722,1733454656677,-603.64818877,0.00019246,4]
[344427723,1733454656687,-386.259157,0.00019246,4]
[344427724,1733454656699,-150.0,0.00019267,4]
[344427725,1733454656709,-500.0,0.00019283,2]
[344427726,1733454656721,-500.0,0.00019283,2]
[344427727,1733454656731,-500.0,0.00019283,2]
[344427728,1733454656741,-500.0,0.00019283,2]
[344427729,1733454656751,-500.0,0.00019283,2]
[344427730,1733454656761,-500.0,0.00019283,2]
[344427731,1733454656771,-500.0,0.00019283,2]
[344427732,1733454656782,-500.0,0.00019283,2]
[344427733,1733454656793,-500.0,0.00019283,2]
[344427734,1733454656810,-500.0,0.00019283,2]
[344427735,1733454656820,-500.0,0.00019283,2]
[344427736,1733454656830,-500.0,0.00019283,2]
[344427737,1733454656840,-500.0,0.00019283,2]
[344427738,1733454656850,-501.0,0.00019283,2]
[344427739,1733454656860,-500.0,0.00019283,2]
[344427740,1733454656872,-500.0,0.00019283,2]
[344427741,1733454656884,-500.0,0.00019283,2]
[344427742,1733454656894,-500.0,0.00019283,2]
[344427743,1733454656904,-500.0,0.00019283,2]
[344427744,1733454656915,-500.0,0.00019283,2]
[344427745,1733454656926,-500.0,0.00019283,2]
[344427746,1733454656936,-500.0,0.00019283,2]
[344427747,1733454656948,-500.0,0.00019283,2]
[344427748,1733454656958,-500.0,0.00019283,2]
[344427749,1733454656970,-500.0,0.00019283,2]
[344427750,1733454656980,-500.0,0.00019283,2]
[344427751,1733454656990,-500.0,0.00019283,2]
[344427752,1733454657000,-500.0,0.00019283,2]
[344427753,1733454657010,-500.0,0.00019283,2]
[344427754,1733454657020,-500.0,0.00019283,2]
[344427755,1733454657031,-500.0,0.00019283,2]
[344427756,1733454657041,-500.0,0.00019283,2]
[344427757,1733454657051,-500.0,0.00019283,2]
[344427758,1733454657062,-500.0,0.00019283,2]
[344427759,1733454657073,-500.0,0.00019283,2]
[344427760,1733454657084,-500.0,0.00019283,2]
[344427761,1733454657095,-500.0,0.00019283,2]
[344427762,1733454657105,-500.0,0.00019283,2]
[344427763,1733454657116,-500.0,0.00019283,2]
[344427764,1733454657126,-500.0,0.00019283,2]
[344427765,1733454657136,-500.0,0.00019283,2]
[344427766,1733454657146,-500.0,0.00019283,2]
[344427767,1733454657156,-500.0,0.00019283,2]
[344427768,1733454657167,-500.0,0.00019283,2]
[344427769,1733454657177,-500.0,0.00019283,2]
[344427770,1733454657187,-500.0,0.00019283,2]
[344427771,1733454657197,-500.0,0.00019283,2]
[344427772,1733454657207,-500.0,0.00019283,2]
[344427773,1733454657219,-500.0,0.00019283,2]
[344427774,1733454657229,-500.0,0.00019283,2]
[344427775,1733454657239,-500.0,0.00019283,2]
[344427776,1733454657251,-500.0,0.00019283,2]
[344427777,1733454657261,-500.0,0.00019283,2]
[344427778,1733454657272,-500.0,0.00019283,2]
[344427779,1733454657282,-500.0,0.00019283,2]
[344427780,1733454657293,-500.0,0.00019283,2]
[344427781,1733454657303,-500.0,0.00019283,2]
[344427782,1733454657314,-500.0,0.00019283,2]
[344427783,1733454657324,-500.0,0.00019283,2]
[344427784,1733454657334,-513.0,0.00019283,2]
[344427785,1733454657344,-9170.17324342,0.000193,2]
[344427786,1733454657355,-603.64818877,0.00019346,4]
[344427787,1733454657365,-386.259157,0.00019346,4]
[344427788,1733454657375,-500.0,0.00019389,2]
[344427789,1733454657385,-2400.0,0.00019389,2]
[344427790,1733454657396,-1700.0,0.00019389,2]
[344427791,1733454657407,-150.0,0.00019412,4]
[344427792,1733454657417,-150.0,0.00019417,4]
[344427793,1733454657427,-603.64818877,0.00019445,4]
[344427794,1733454657437,-386.259157,0.00019445,4]
[344427795,1733454657447,-150.120611,0.00019448,4]
[344427796,1733454657457,-150.0,0.00019467,2]
[344427797,1733454657470,-150.0,0.00019474,4]
[344427798,1733454657481,-201.0,0.0001951,2]
[344427799,1733454657491,-603.64818877,0.00019545,4]
[344427800,1733454657502,-386.259157,0.00019545,4]
[344427801,1733454657512,-150.0,0.00019557,4]
[344427802,1733454657522,-150.0,0.00019578,4]
[344427803,1733454657532,-2000.01388942,0.0001961,2]
[344427804,1733454657542,-150.0,0.00019615,4]
[344427805,1733454657552,-603.64818877,0.00019644,4]
[344427806,1733454657562,-386.259157,0.00019644,4]
[344427807,1733454657572,-150.0,0.00019701,4]
[344427808,1733454657582,-603.64818877,0.00019744,4]
[344427809,1733454657593,-386.259157,0.00019744,4]
[344427810,1733454657605,-5000.0,0.00019748,30]
[344427811,1733454657615,-150.120611,0.00019748,4]
[344427812,1733454657625,-150.0,0.00019812,4]
[344427813,1733454657635,-150.0,0.00019827,2]
[344427814,1733454657646,-603.64818877,0.00019843,4]
[344427815,1733454657658,-386.259157,0.00019843,4]
[344427816,1733454657669,-150.0,0.00019846,4]
[344427817,1733454657681,-4667.91098537,0.000199,3]
[344427818,1733454657691,-153.84,0.000199,31]
[344427819,1733454657701,-153.84,0.000199,31]
[344427820,1733454657711,-153.84,0.000199,31]
[344427821,1733454657723,-153.84,0.000199,31]
[344427822,1733454657733,-153.84,0.000199,31]
[344427823,1733454657744,-153.84,0.000199,31]
[344427824,1733454657754,-153.84,0.000199,31]
[344427825,1733454657765,-153.84,0.000199,31]
[344427826,1733454657775,-153.84,0.000199,31]
[344427827,1733454657785,-153.84,0.000199,31]
[344427828,1733454657795,-603.64818877,0.00019943,4]
[344427829,1733454657805,-386.259157,0.00019943,4]
[344427830,1733454657815,-150.0,0.00019943,4]
[344427831,1733454657825,-40000.0,0.00019987,5]
[344427832,1733454657835,-150.0,0.00019991,4]
[344427833,1733454657845,-4500.0,0.0002,2]
[344427834,1733454657855,-296.90362776,0.0002,2]
[344427835,1733454657866,-1386.22577621,0.0002,5]
[344427836,1733454657879,-3814.61860695,0.0002,2]
[344427837,1733454657889,-349162.53468139,0.0002,4]
[344427838,1733454657899,-3950.0,0.0002,2]
[344427839,1733454657910,-24222.06838857,0.0002,2]
[344427840,1733454657920,-40508.48725054,0.0002,10]
[344427841,1733454657930,-1234.11114968,0.0002,2]
[344427842,1733454657940,-52245.71861103,0.0002,5]
[344427843,1733454657952,-2766.28265265,0.0002,7]
[344427844,1733454657963,-469.70597119,0.0002,10]
[344427845,1733454657986,-2048.23293754,0.0002,2]
[344427846,1733454658300,-1013.0,0.0002,6]
[344427847,1733454658311,-2074.0,0.0002,2]
[344427848,1733454658321,-4000.0,0.0002,7]
[344427849,1733454658330,-4000.0,0.0002,7]
[344427850,1733454658340,-4500.0,0.0002,7]
[344427851,1733454658350,-1353.14926455,0.0002,5]
[344427852,1733454658360,-30000.0,0.0002,2]
[344427853,1733454658370,-30000.0,0.0002,2]
[344427854,1733454658379,-30000.0,0.0002,2]
[344427855,1733454658390,-30000.0,0.0002,2]
[344427856,1733454658400,-30000.0,0.0002,2]
[344427857,1733454658410,-30000.0,0.0002,2]
[344427858,1733454658420,-30000.0,0.0002,2]
[344427859,1733454658429,-30000.0,0.0002,2]
[344427860,1733454658439,-30000.0,0.0002,2]
[344427861,1733454658449,-30000.0,0.0002,2]
[344427862,1733454658459,-30000.0,0.0002,2]
[344427863,1733454658474,-30000.0,0.0002,2]
[344427864,1733454658484,-9879.24,0.0002,2]
[344427865,1733454658493,-5000.0,0.0002,2]
[344427866,1733454658503,-98385.09589417,0.0002,2]
[344427867,1733454658512,-318.0,0.0002,10]
[344427868,1733454658521,-150.0,0.0002,2]
[344427869,1733454658531,-150.0,0.0002,2]
[344427870,1733454658540,-321.0,0.0002,2]
[344427871,1733454658549,-500.083092,0.0002,2]
[344427872,1733454658559,-158.0,0.0002,2]
[344427873,1733454658568,-150.0,0.00020009,4]
[344427874,1733454658577,-603.64818877,0.00020043,4]
[344427875,1733454658587,-386.259157,0.00020043,4]
[344427876,1733454658595,-16111.15052298,0.00020095,2]
[344427877,1733454658605,-152.0,0.000201,9]
[344427878,1733454658614,-283.51925832,0.000201,5]
[344427879,1733454658624,-1055.0,0.00020115,2]
[344427880,1733454658634,-150.0,0.00020136,4]
[344427881,1733454658644,-603.64818877,0.00020142,4]
[344427882,1733454658653,-386.259157,0.00020142,4]
[344427883,1733454658663,-150.0,0.00020178,4]
[344427884,1733454658673,-150.0,0.00020188,2]
[344427885,1733454658683,-150.0,0.00020206,4]
[344427886,1733454658694,-10000.0,0.0002021,30]
[344427887,1733454658703,-823.679177,0.00020219,2]
[344427888,1733454658714,-603.64818877,0.00020242,4]
[344427889,1733454658724,-386.259157,0.00020242,4]
[344427890,1733454658733,-150.0,0.00020281,4]
[344427891,1733454658742,-200.0,0.00020299,2]
[344427892,1733454658752,-1197.99482269,0.00020299,5]
[344427893,1733454658761,-150.0,0.00020308,4]
[344427894,1733454658770,-603.64818877,0.00020341,4]
[344427895,1733454658779,-386.259157,0.00020341,4]
[344427896,1733454658788,-150.0,0.00020354,4]
[344427897,1733454658797,-202.0,0.0002039,2]
[344427898,1733454658806,-201.0,0.0002039,2]
[344427899,1733454658815,-150.0,0.00020403,4]
[344427900,1733454658825,-150.0,0.00020426,4]
[344427901,1733454658835,-603.64818877,0.00020441,4]
[344427902,1733454658845,-386.259157,0.00020441,4]
[344427903,1733454658854,-2400.0,0.00020485,2]
[344427904,1733454658864,-1700.0,0.00020485,2]
[344427905,1733454658875,-500.0,0.00020485,2]
[344427906,1733454658885,-200.0,0.00020502,2]
[344427907,1733454658894,-603.64818877,0.0002054,4]
[344427908,1733454658903,-386.259157,0.0002054,4]
[344427909,1733454658914,-150.0,0.00020548,2]
[344427910,1733454658923,-150.0,0.00020571,4]
[344427911,1733454658932,-435.12,0.00020584,2]
[344427912,1733454658942,-868.41,0.00020584,2]
[344427913,1733454658953,-435.12,0.00020584,2]
[344427914,1733454658964,-435.12,0.00020584,2]
[344427915,1733454658973,-150.0,0.000206,4]
[344427916,1733454658982,-175.34,0.00020639,2]
[344427917,1733454658991,-603.64818877,0.0002064,4]
[344427918,1733454659000,-386.259157,0.0002064,4]
[344427919,1733454659010,-150.0,0.00020673,4]
[344427920,1733454659021,-200.0,0.00020707,2]
[344427921,1733454659031,-150.0,0.00020716,4]
[344427922,1733454659040,-603.64818877,0.00020739,4]
[344427923,1733454659051,-386.259157,0.00020739,4]